[Event "7th Cesme Open-A 2019"]
[Site "Cesme"]
[Date "2019.06.26"]
[Round "5"]
[White "Yilmaz, Goktan"]
[Black "Olcum, Ahmet"]
[Result "1-0"]
[ECO "C41"]
[WhiteElo "2155"]
[BlackElo "2315"]
[Annotator "NA"]
[PlyCount "79"]
[EventDate "2019.06.24"]
[EventType "swiss"]
[EventCountry "TUR"]
[SourceTitle "playchess.com"]
[Source "ChessBase"]
[SourceQuality "1"]
[TimeControl "5400+30"]

1. e4 {[%emt 0:00:30]} d6 {[%emt 0:15:30]} 2. d4 {[%emt 0:00:30]} Nf6 {[%emt 0:00:00]} 3. Nc3 {[%emt 0:00:00]} Nbd7 {[%emt 0:00:00]} 4. Nf3 {[%emt 0:00:00]} e5 {[%emt 0:00:00]} 5. Bc4 {[%emt 0:00:30]} Be7 {[%emt 0:00:00]} 6. O-O {[%emt 0:00:30]} c6 {[%emt 0:00:00]} 7. a4 {[%emt 0:00:00]} h6 {[%emt 0:01:00]} 8. Re1 {[%emt 0:01:00]} Qc7 {[%emt 0:00:30]} 9. a5 {[%emt 0:00:30]} Nf8 {[%emt 0:00:30]} 10. Nh4 {[%emt 0:03:30]} g6 {[%emt 0:00:30]} 11. b3 {[%emt 0:02:30]} N6h7 {[%emt 0:09:30]} 12. Nf3 {[%emt 0:03:30]} Ng5 {[%emt 0:04:30]} 13. Nd2 {[%emt 0:15:30]} Nge6 {[%emt 0:19:30]} 14. d5 {[%emt 0:06:30]} Ng7 {[%emt 0:02:30]} 15. Bf1 {[%emt 0:08:30]} g5 {[%emt 0:08:30]} 16. Nc4 {[%emt 0:02:30]} c5 {[%emt 0:02:30]} 17. Be3 {[%emt 0:08:30]} Bd7 {[%emt 0:01:30]} 18. Qb1 {[%emt 0:01:30]} Rb8 {[%emt 0:16:21]} 19. b4 {[%emt 0:01:30]} b5 {[%emt 0:00:33]} 20. axb6 {[%emt 0:00:30]} axb6 {[%emt 0:00:02]} 21. bxc5 {[%emt 0:05:30]} bxc5 {[%emt 0:00:36]} 22. Qa2 {[%emt 0:00:30]} Nh7 {[%emt 0:02:58]} 23. Qa7 {[%emt 0:01:30]} Rb7 {[%emt 0:00:59]} 24. Qa8+ {[%emt 0:00:30]} Rb8 {[%emt 0:00:05]} 25. Qa7 {[%emt 0:08:30]} Rb7 {[%emt 0:00:56]} 26. Qa6 {[%emt 0:00:00]} O-O {[%emt 0:02:15]} 27. Bxc5 {[%emt 0:01:00]} dxc5 {[%emt 0:03:04]} 28. d6 {[%emt 0:00:30]} Bxd6 {[%emt 0:00:00]} 29. Nd5 {[%emt 0:03:30]} Qc6 {[%emt 0:00:31]} 30. Nxd6 {[%emt 0:00:30]} Qxa6 {[%emt 0:00:30]} 31. Rxa6 {[%emt 0:00:30]} Rb2 {[%emt 0:00:57]} 32. Bc4 {[%emt 0:05:30]} Rfb8 {[%emt 0:06:09]} 33. Bb3 {[%emt 0:03:01]} Ne6 {[%emt 0:02:06]} 34. Ra7 {[%emt 0:00:11]} Bb5 {[%emt 0:00:12]} 35. Ne7+ {[%emt 0:03:01]} Kf8 {[%emt 0:00:33]} 36. Bxe6 {[%emt 0:02:53]} fxe6 {[%emt 0:00:41]} 37. Ng6+ {[%emt 0:00:04]} Kg8 {[%emt 0:00:00]} 38. Nf7 {[%emt 0:00:03]} Kg7 {[%emt 0:00:52]} 39. Nfxe5+ {[%emt 0:00:05]} Kg8 {[%emt 0:00:15]} 40. Ng4 {[%emt 0:00:03]} 1-0

[Event "7th Cesme Open-A 2019"]
[Site "Cesme"]
[Date "2019.06.26"]
[Round "5"]
[White "Cansun, Can Alp"]
[Black "Tuncer, Tuna"]
[Result "0-1"]
[ECO "B33"]
[WhiteElo "2121"]
[BlackElo "2365"]
[Annotator "NA"]
[PlyCount "94"]
[EventDate "2019.06.24"]
[EventType "swiss"]
[EventCountry "TUR"]
[SourceTitle "playchess.com"]
[Source "ChessBase"]
[SourceQuality "1"]
[TimeControl "5400+30"]

1. e4 {[%emt 0:00:30]} c5 {[%emt 0:00:30]} 2. Nf3 {[%emt 0:00:00]} e6 {[%emt 0:00:30]} 3. d4 {[%emt 0:00:00]} cxd4 {[%emt 0:00:30]} 4. Nxd4 {[%emt 0:00:00]} Nf6 {[%emt 0:00:00]} 5. Nc3 {[%emt 0:00:00]} Nc6 {[%emt 0:00:00]} 6. Ndb5 {[%emt 0:01:30]} d6 {[%emt 0:00:00]} 7. Bf4 {[%emt 0:00:30]} e5 {[%emt 0:00:00]} 8. Bg5 {[%emt 0:00:30]} a6 {[%emt 0:00:30]} 9. Na3 {[%emt 0:00:30]} Be6 {[%emt 0:00:00]} 10. Nc4 {[%emt 0:00:30]} Rb8 {[%emt 0:00:00]} 11. Bxf6 {[%emt 0:01:30]} Qxf6 {[%emt 0:00:00]} 12. Ne3 {[%emt 0:06:30]} Qg6 {[%emt 0:07:00]} 13. g3 {[%emt 0:06:30]} h5 {[%emt 0:08:30]} 14. h4 {[%emt 0:00:30]} Be7 {[%emt 0:14:30]} 15. Bg2 {[%emt 0:00:30]} Qh6 {[%emt 0:02:30]} 16. Ncd5 {[%emt 0:08:30]} Bd8 {[%emt 0:02:30]} 17. c3 {[%emt 0:06:30]} Ne7 {[%emt 0:01:30]} 18. Nxe7 {[%emt 0:08:30]} Bxe7 {[%emt 0:04:30]} 19. Nf5 {[%emt 0:00:30]} Qf6 {[%emt 0:02:30]} 20. Qd3 {[%emt 0:03:30]} O-O {[%emt 0:07:30]} 21. O-O {[%emt 0:09:30]} g6 {[%emt 0:09:30]} 22. Ne3 {[%emt 0:00:30]} Qg7 {[%emt 0:00:30]} 23. Nd5 {[%emt 0:02:30]} Bd8 {[%emt 0:00:30]} 24. f4 {[%emt 0:00:30]} Bxd5 {[%emt 0:13:30]} 25. Qxd5 {[%emt 0:00:30]} exf4 {[%emt 0:00:30]} 26. Rxf4 {[%emt 0:00:30]} Qe5 {[%emt 0:00:30]} 27. Qd3 {[%emt 0:07:30]} Bf6 {[%emt 0:03:30]} 28. Raf1 {[%emt 0:00:30]} Qc5+ {[%emt 0:00:30]} 29. Kh1 {[%emt 0:01:30]} Be5 {[%emt 0:00:00]} 30. R4f3 {[%emt 0:00:30]} b5 {[%emt 0:00:00]} 31. a3 {[%emt 0:05:30]} a5 {[%emt 0:06:17]} 32. Qd2 {[%emt 0:02:30]} b4 {[%emt 0:02:03]} 33. axb4 {[%emt 0:00:30]} axb4 {[%emt 0:00:00]} 34. Qg5 {[%emt 0:01:30]} Qc8 {[%emt 0:01:56]} 35. cxb4 {[%emt 0:20:21]} Rxb4 {[%emt 0:00:21]} 36. b3 {[%emt 0:00:25]} Qe6 {[%emt 0:01:25]} 37. Qe3 {[%emt 0:03:34]} Bg7 {[%emt 0:00:42]} 38. Qd3 {[%emt 0:00:42]} Be5 {[%emt 0:03:52]} 39. Kg1 {[%emt 0:02:49]} Rfb8 {[%emt 0:04:29]} 40. Rb1 {[%emt 0:00:37]} Rd4 {[%emt 0:02:16]} 41. Qf1 {[%emt 0:00:09]} Rd2 {[%emt 0:01:52]} 42. Rc1 {[%emt 0:00:36]} Rxb3 {[%emt 0:01:05]} 43. Rc7 {[%emt 0:00:37]} Rbb2 {[%emt 0:00:29]} 44. Rcxf7 {[%emt 0:00:39]} Rxg2+ {[%emt 0:00:45]} 45. Qxg2 {[%emt 0:00:30]} Rxg2+ {[%emt 0:00:30]} 46. Kxg2 {[%emt 0:00:30]} Qxf7 {[%emt 0:00:00]} 47. Rxf7 {[%emt 0:00:00]} Kxf7 {[%emt 0:00:00]} 0-1

[Event "7th Cesme Open-A 2019"]
[Site "Cesme"]
[Date "2019.06.26"]
[Round "5"]
[White "Caputcuoglu, Zeki Berke"]
[Black "Can, Melih Kaan"]
[Result "1-0"]
[ECO "A31"]
[WhiteElo "2097"]
[BlackElo "2204"]
[Annotator "NA"]
[PlyCount "99"]
[EventDate "2019.06.24"]
[EventType "swiss"]
[EventCountry "TUR"]
[SourceTitle "playchess.com"]
[Source "ChessBase"]
[SourceQuality "1"]
[TimeControl "5400+30"]

1. Nf3 {[%emt 0:00:30]} Nf6 {[%emt 0:15:30]} 2. d4 {[%emt 0:00:00]} c5 {[%emt 0:00:00]} 3. c4 {[%emt 0:00:00]} cxd4 {[%emt 0:02:00]} 4. Nxd4 {[%emt 0:00:30]} e5 {[%emt 0:00:00]} 5. Nb5 {[%emt 0:00:30]} d5 {[%emt 0:00:00]} 6. cxd5 {[%emt 0:00:30]} Bc5 {[%emt 0:00:30]} 7. N5c3 {[%emt 0:00:00]} O-O {[%emt 0:00:30]} 8. g3 {[%emt 0:00:00]} Re8 {[%emt 0:02:30]} 9. Bg2 {[%emt 0:02:30]} e4 {[%emt 0:00:30]} 10. O-O {[%emt 0:01:30]} Bf5 {[%emt 0:02:30]} 11. Na3 {[%emt 0:03:30]} Nbd7 {[%emt 0:03:30]} 12. Nc4 {[%emt 0:18:30]} Rc8 {[%emt 0:00:30]} 13. Bf4 {[%emt 0:14:30]} Nf8 {[%emt 0:22:30]} 14. Qb3 {[%emt 0:09:30]} Ng6 {[%emt 0:05:30]} 15. Be3 {[%emt 0:02:30]} b6 {[%emt 0:25:25]} 16. Bxc5 {[%emt 0:06:30]} Rxc5 {[%emt 0:00:30]} 17. Ne3 {[%emt 0:00:30]} Bd7 {[%emt 0:00:53]} 18. Rfd1 {[%emt 0:01:30]} Qe7 {[%emt 0:00:26]} 19. Rd4 {[%emt 0:01:30]} Qe5 {[%emt 0:00:14]} 20. Rad1 {[%emt 0:00:00]} Qh5 {[%emt 0:00:47]} 21. Re1 {[%emt 0:16:17]} Bh3 {[%emt 0:04:32]} 22. Nxe4 {[%emt 0:01:41]} Nxe4 {[%emt 0:01:53]} 23. Rxe4 {[%emt 0:00:06]} Rec8 {[%emt 0:02:53]} 24. Bxh3 {[%emt 0:07:52]} Qxh3 {[%emt 0:00:48]} 25. Rc4 {[%emt 0:00:00]} Rxc4 {[%emt 0:01:58]} 26. Nxc4 {[%emt 0:00:08]} h5 {[%emt 0:00:01]} 27. Ne3 {[%emt 0:08:02]} h4 {[%emt 0:00:28]} 28. Qd3 {[%emt 0:01:12]} hxg3 {[%emt 0:01:04]} 29. hxg3 {[%emt 0:00:06]} Ne5 {[%emt 0:01:43]} 30. Qe4 {[%emt 0:00:10]} Nd7 {[%emt 0:01:25]} 31. Rd1 {[%emt 0:00:42]} Qh5 {[%emt 0:01:41]} 32. Qe7 {[%emt 0:01:14]} Qh3 {[%emt 0:01:25]} 33. Ng2 {[%emt 0:03:09]} Qf5 {[%emt 0:01:04]} 34. Nf4 {[%emt 0:00:43]} Rc2 {[%emt 0:00:31]} 35. Qe8+ {[%emt 0:00:32]} Nf8 {[%emt 0:00:29]} 36. d6 {[%emt 0:00:41]} Qd7 {[%emt 0:00:01]} 37. Qe7 {[%emt 0:00:22]} a5 {[%emt 0:01:43]} 38. e4 {[%emt 0:00:41]} Qg4 {[%emt 0:00:22]} 39. Rf1 {[%emt 0:01:06]} Rxb2 {[%emt 0:00:15]} 40. e5 {[%emt 0:00:00]} Rd2 {[%emt 0:00:46]} 41. Rc1 {[%emt 0:00:35]} Rd1+ {[%emt 0:01:00]} 42. Rxd1 {[%emt 0:00:07]} Qxd1+ {[%emt 0:00:00]} 43. Kg2 {[%emt 0:00:52]} b5 {[%emt 0:00:00]} 44. Qe8 {[%emt 0:00:12]} b4 {[%emt 0:00:00]} 45. Qa8 {[%emt 0:00:18]} a4 {[%emt 0:00:49]} 46. Nd5 {[%emt 0:00:25]} Kh7 {[%emt 0:01:41]} 47. Ne7 {[%emt 0:00:07]} Ne6 {[%emt 0:00:33]} 48. Qg8+ {[%emt 0:00:30]} Kh6 {[%emt 0:00:30]} 49. Qh8+ {[%emt 0:00:00]} Kg5 {[%emt 0:00:00]} 50. Qh4# {[%emt 0:00:00]} 1-0

[Event "7th Cesme Open-A 2019"]
[Site "Cesme"]
[Date "2019.06.27"]
[Round "6"]
[White "Baklan, Vladimir"]
[Black "Bernadskiy, Vitaliy"]
[Result "1/2-1/2"]
[ECO "B70"]
[WhiteElo "2620"]
[BlackElo "2578"]
[Annotator "RC"]
[PlyCount "31"]
[EventDate "2019.06.24"]
[EventType "swiss"]
[EventCountry "TUR"]
[SourceTitle "playchess.com"]
[Source "ChessBase"]
[SourceQuality "1"]
[TimeControl "5400+30"]

1. e4 {[%emt 0:00:30]} c5 {[%emt 0:00:30]} 2. Nf3 {[%emt 0:00:30]} Nc6 {[%emt 0:00:00]} 3. d4 {[%emt 0:02:30]} cxd4 {[%emt 0:00:00]} 4. Nxd4 {[%emt 0:00:00]} Nf6 {[%emt 0:00:30]} 5. Nc3 {[%emt 0:00:00]} d6 {[%emt 0:00:30]} 6. g3 {[%emt 0:01:30]} g6 {[%emt 0:03:30]} 7. Nde2 {[%emt 0:00:30]} Bg7 {[%emt 0:00:00]} 8. Bg2 {[%emt 0:00:30]} O-O {[%emt 0:00:00]} 9. O-O {[%emt 0:00:00]} Rb8 {[%emt 0:00:30]} 10. a4 {[%emt 0:01:00]} a6 {[%emt 0:01:30]} 11. Nd5 {[%emt 0:04:30]} b5 {[%emt 0:02:30]} 12. axb5 {[%emt 0:01:30]} axb5 {[%emt 0:00:00]} 13. c3 {[%emt 0:00:00]} Nd7 {[%emt 0:01:00]} 14. Nd4 {[%emt 0:04:00]} Nxd4 {[%emt 0:03:30]} 15. cxd4 {[%emt 0:00:30]} Bb7 {[%emt 0:00:30]} 16. Bg5 {[%emt 0:06:30]} 1/2-1/2

[Event "7th Cesme Open-A 2019"]
[Site "Cesme"]
[Date "2019.06.27"]
[Round "6"]
[White "Mohannad, Farhan"]
[Black "Koksal, Ege"]
[Result "0-1"]
[ECO "D85"]
[WhiteElo "2193"]
[BlackElo "2363"]
[Annotator "RC"]
[PlyCount "143"]
[EventDate "2019.06.24"]
[EventType "swiss"]
[EventCountry "TUR"]
[SourceTitle "playchess.com"]
[Source "ChessBase"]
[SourceQuality "1"]
[TimeControl "5400+30"]

1. d4 {[%emt 0:00:30]} Nf6 {[%emt 0:05:30]} 2. c4 {[%emt 0:00:30]} g6 {[%emt 0:00:00]} 3. Nc3 {[%emt 0:00:00]} d5 {[%emt 0:00:00]} 4. cxd5 {[%emt 0:01:00]} Nxd5 {[%emt 0:00:00]} 5. e4 {[%emt 0:00:30]} Nxc3 {[%emt 0:00:00]} 6. bxc3 {[%emt 0:00:00]} Bg7 {[%emt 0:00:30]} 7. Bg5 {[%emt 0:00:00]} O-O {[%emt 0:00:30]} 8. Rc1 {[%emt 0:00:30]} c5 {[%emt 0:01:30]} 9. d5 {[%emt 0:02:30]} Qc7 {[%emt 0:05:30]} 10. Nf3 {[%emt 0:01:30]} Bg4 {[%emt 0:03:30]} 11. Qd2 {[%emt 0:00:30]} e6 {[%emt 0:02:30]} 12. Bf4 {[%emt 0:14:30]} Qd7 {[%emt 0:05:30]} 13. Be2 {[%emt 0:05:30]} exd5 {[%emt 0:02:30]} 14. exd5 {[%emt 0:00:30]} Bxf3 {[%emt 0:00:30]} 15. Bxf3 {[%emt 0:00:30]} Re8+ {[%emt 0:00:30]} 16. Be3 {[%emt 0:00:30]} Bh6 {[%emt 0:04:30]} 17. O-O {[%emt 0:00:30]} Bxe3 {[%emt 0:00:30]} 18. fxe3 {[%emt 0:00:30]} Qd6 {[%emt 0:00:00]} 19. Bd1 {[%emt 0:08:30]} Nd7 {[%emt 0:02:00]} 20. Ba4 {[%emt 0:00:30]} Re5 {[%emt 0:01:30]} 21. Qf2 {[%emt 0:13:30]} Rf5 {[%emt 0:02:30]} 22. Qh4 {[%emt 0:00:00]} Rxf1+ {[%emt 0:00:30]} 23. Rxf1 {[%emt 0:00:00]} Nb6 {[%emt 0:01:30]} 24. Bb3 {[%emt 0:04:30]} Kg7 {[%emt 0:02:30]} 25. c4 {[%emt 0:02:30]} Re8 {[%emt 0:04:30]} 26. Qf2 {[%emt 0:10:30]} Re7 {[%emt 0:04:30]} 27. a4 {[%emt 0:05:30]} Qe5 {[%emt 0:04:30]} 28. Kh1 {[%emt 0:00:30]} Nc8 {[%emt 0:01:30]} 29. e4 {[%emt 0:03:30]} b6 {[%emt 0:00:00]} 30. Bc2 {[%emt 0:00:30]} Nd6 {[%emt 0:00:00]} 31. Bd3 {[%emt 0:00:00]} Qc3 {[%emt 0:03:30]} 32. Qf3 {[%emt 0:02:00]} Qd4 {[%emt 0:00:30]} 33. h3 {[%emt 0:00:30]} Qe5 {[%emt 0:04:30]} 34. Qf2 {[%emt 0:00:30]} Qd4 {[%emt 0:05:30]} 35. Qf3 {[%emt 0:01:30]} Kg8 {[%emt 0:02:30]} 36. Rd1 {[%emt 0:03:30]} Qe5 {[%emt 0:01:30]} 37. Qf2 {[%emt 0:02:26]} Kg7 {[%emt 0:01:30]} 38. a5 {[%emt 0:01:58]} Qf6 {[%emt 0:00:30]} 39. Qe3 {[%emt 0:03:00]} Nf5 {[%emt 0:03:30]} 40. Qf2 {[%emt 0:00:03]} Nd6 {[%emt 0:02:30]} 41. Qe3 {[%emt 0:00:04]} Qd4 {[%emt 0:04:30]} 42. Qxd4+ {[%emt 0:02:23]} cxd4 {[%emt 0:00:30]} 43. axb6 {[%emt 0:00:30]} axb6 {[%emt 0:00:30]} 44. Bc2 {[%emt 0:00:30]} Kf6 {[%emt 0:00:30]} 45. Rxd4 {[%emt 0:00:30]} Ke5 {[%emt 0:00:30]} 46. Rd1 {[%emt 0:01:25]} Nxc4 {[%emt 0:03:30]} 47. Rb1 {[%emt 0:01:26]} Rb7 {[%emt 0:01:46]} 48. Bd3 {[%emt 0:03:01]} Nd6 {[%emt 0:01:25]} 49. Rb4 {[%emt 0:00:12]} b5 {[%emt 0:00:14]} 50. Kg1 {[%emt 0:02:44]} f5 {[%emt 0:00:00]} 51. exf5 {[%emt 0:00:30]} gxf5 {[%emt 0:01:12]} 52. g4 {[%emt 0:00:00]} fxg4 {[%emt 0:00:37]} 53. hxg4 {[%emt 0:00:00]} Kxd5 {[%emt 0:02:10]} 54. g5 {[%emt 0:00:00]} Rg7 {[%emt 0:01:33]} 55. Rg4 {[%emt 0:00:41]} Nc4 {[%emt 0:00:44]} 56. Be4+ {[%emt 0:04:18]} Kc5 {[%emt 0:00:35]} 57. Kf2 {[%emt 0:01:19]} Ne5 {[%emt 0:00:40]} 58. Rh4 {[%emt 0:00:52]} Ng6 {[%emt 0:00:01]} 59. Rg4 {[%emt 0:01:12]} b4 {[%emt 0:00:20]} 60. Ke3 {[%emt 0:00:19]} Rd7 {[%emt 0:00:37]} 61. Rg1 {[%emt 0:00:31]} b3 {[%emt 0:02:31]} 62. Bf5 {[%emt 0:01:09]} Rd5 {[%emt 0:00:41]} 63. Be4 {[%emt 0:00:21]} Re5 {[%emt 0:01:09]} 64. Rh1 {[%emt 0:00:16]} Re7 {[%emt 0:00:27]} 65. Kd3 {[%emt 0:01:24]} Kb4 {[%emt 0:00:32]} 66. Bxg6 {[%emt 0:01:39]} hxg6 {[%emt 0:00:04]} 67. Rh6 {[%emt 0:00:14]} Rd7+ {[%emt 0:00:23]} 68. Ke4 {[%emt 0:00:15]} b2 {[%emt 0:00:20]} 69. Rh1 {[%emt 0:00:11]} Rc7 {[%emt 0:00:32]} 70. Ke5 {[%emt 0:00:56]} Rc6 {[%emt 0:01:14]} 71. Rh8 {[%emt 0:00:56]} Rb6 {[%emt 0:00:10]} 72. Rh1 {[%emt 0:00:00]} 0-1

[Event "7th Cesme Open-A 2019"]
[Site "Cesme"]
[Date "2019.06.27"]
[Round "6"]
[White "Fadeev, Semen"]
[Black "Kamer, Kayra"]
[Result "0-1"]
[ECO "B41"]
[WhiteElo "2168"]
[BlackElo "2353"]
[Annotator "RC"]
[PlyCount "100"]
[EventDate "2019.06.24"]
[EventType "swiss"]
[EventCountry "TUR"]
[SourceTitle "playchess.com"]
[Source "ChessBase"]
[SourceQuality "1"]
[TimeControl "5400+30"]

1. e4 {[%emt 0:07:30]} c5 {[%emt 0:01:30]} 2. Nf3 {[%emt 0:00:30]} e6 {[%emt 0:00:00]} 3. d4 {[%emt 0:00:30]} cxd4 {[%emt 0:00:00]} 4. Nxd4 {[%emt 0:00:30]} a6 {[%emt 0:00:00]} 5. c4 {[%emt 0:00:00]} Nf6 {[%emt 0:00:00]} 6. Nc3 {[%emt 0:00:00]} Qc7 {[%emt 0:00:00]} 7. Bd3 {[%emt 0:00:30]} Nc6 {[%emt 0:00:00]} 8. Nxc6 {[%emt 0:00:30]} dxc6 {[%emt 0:00:30]} 9. f4 {[%emt 0:01:30]} e5 {[%emt 0:00:00]} 10. O-O {[%emt 0:03:30]} Bc5+ {[%emt 0:00:00]} 11. Kh1 {[%emt 0:00:30]} Bg4 {[%emt 0:01:30]} 12. Qc2 {[%emt 0:03:30]} O-O-O {[%emt 0:00:30]} 13. fxe5 {[%emt 0:04:30]} Nd7 {[%emt 0:01:30]} 14. Bg5 {[%emt 0:11:30]} Rde8 {[%emt 0:02:30]} 15. a3 {[%emt 0:11:30]} Nxe5 {[%emt 0:01:30]} 16. b4 {[%emt 0:04:30]} Bd4 {[%emt 0:00:00]} 17. Rac1 {[%emt 0:01:30]} h6 {[%emt 0:01:00]} 18. Bf4 {[%emt 0:01:30]} g5 {[%emt 0:00:00]} 19. Bg3 {[%emt 0:00:30]} h5 {[%emt 0:00:00]} 20. Be2 {[%emt 0:05:30]} Be6 {[%emt 0:00:30]} 21. Nd5 {[%emt 0:01:30]} Qd8 {[%emt 0:03:30]} 22. Qd2 {[%emt 0:04:30]} h4 {[%emt 0:01:30]} 23. Qxd4 {[%emt 0:02:30]} hxg3 {[%emt 0:00:00]} 24. Qxe5 {[%emt 0:00:00]} Rxh2+ {[%emt 0:01:00]} 25. Kg1 {[%emt 0:00:00]} Rxg2+ {[%emt 0:09:30]} 26. Kxg2 {[%emt 0:00:30]} Bh3+ {[%emt 0:00:00]} 27. Kxh3 {[%emt 0:00:30]} Rxe5 {[%emt 0:00:00]} 28. Nc3 {[%emt 0:01:30]} f5 {[%emt 0:00:30]} 29. Rxf5 {[%emt 0:02:30]} Rxf5 {[%emt 0:03:30]} 30. exf5 {[%emt 0:00:30]} Qd2 {[%emt 0:00:00]} 31. Rf1 {[%emt 0:00:00]} g4+ {[%emt 0:00:00]} 32. Kxg3 {[%emt 0:01:00]} Qxc3+ {[%emt 0:00:00]} 33. Kxg4 {[%emt 0:00:00]} Qc2 {[%emt 0:01:00]} 34. Rf2 {[%emt 0:02:00]} Qe4+ {[%emt 0:00:30]} 35. Kg3 {[%emt 0:00:30]} Qe3+ {[%emt 0:00:00]} 36. Kg2 {[%emt 0:07:30]} Qg5+ {[%emt 0:00:00]} 37. Kf1 {[%emt 0:00:30]} Qf6 {[%emt 0:00:30]} 38. c5 {[%emt 0:02:30]} Kd8 {[%emt 0:00:30]} 39. Kg2 {[%emt 0:00:00]} Qg5+ {[%emt 0:00:30]} 40. Kh3 {[%emt 0:02:06]} Qe3+ {[%emt 0:01:30]} 41. Kg2 {[%emt 0:00:24]} Ke7 {[%emt 0:01:30]} 42. f6+ {[%emt 0:00:30]} Kf8 {[%emt 0:00:00]} 43. f7 {[%emt 0:01:35]} Qxa3 {[%emt 0:00:00]} 44. Rf4 {[%emt 0:00:50]} Qe3 {[%emt 0:00:00]} 45. Rf2 {[%emt 0:01:50]} Qe4+ {[%emt 0:00:00]} 46. Kg3 {[%emt 0:00:30]} Qxb4 {[%emt 0:00:00]} 47. Rf5 {[%emt 0:04:40]} Qe4 {[%emt 0:00:00]} 48. Bg4 {[%emt 0:03:15]} a5 {[%emt 0:00:30]} 49. Kh4 {[%emt 0:09:42]} a4 {[%emt 0:00:30]} 50. Rf3 {[%emt 0:01:09]} Qxf3 {[%emt 0:00:00]} 0-1

[Event "7th Cesme Open-A 2019"]
[Site "Cesme"]
[Date "2019.06.28"]
[Round "7"]
[White "Bernadskiy, Vitaliy"]
[Black "Quparadze, Giga"]
[Result "1/2-1/2"]
[ECO "D30"]
[WhiteElo "2578"]
[BlackElo "2498"]
[Annotator "ChessBase"]
[PlyCount "75"]
[EventDate "2019.06.24"]
[EventType "swiss"]
[EventCountry "TUR"]
[SourceTitle "playchess.com"]
[Source "ChessBase"]
[SourceQuality "1"]
[TimeControl "5400+30"]

1. d4 {[%emt 0:00:30]} Nf6 {[%emt 0:00:30]} 2. c4 {[%emt 0:00:30]} e6 {[%emt 0:00:00]} 3. g3 {[%emt 0:00:00]} d5 {[%emt 0:00:00]} 4. Bg2 {[%emt 0:02:00]} Bb4+ {[%emt 0:00:30]} 5. Nd2 {[%emt 0:00:30]} c5 {[%emt 0:00:30]} 6. dxc5 {[%emt 0:05:30]} Bxc5 {[%emt 0:01:30]} 7. Ngf3 {[%emt 0:00:30]} O-O {[%emt 0:01:30]} 8. O-O {[%emt 0:01:30]} Nc6 {[%emt 0:00:30]} 9. cxd5 {[%emt 0:03:30]} exd5 {[%emt 0:00:30]} 10. Nb3 {[%emt 0:00:30]} Bb6 {[%emt 0:00:00]} 11. Nbd4 {[%emt 0:00:30]} Re8 {[%emt 0:01:00]} 12. b3 {[%emt 0:01:30]} Nxd4 {[%emt 0:01:30]} 13. Nxd4 {[%emt 0:00:30]} Bg4 {[%emt 0:00:30]} 14. Bb2 {[%emt 0:02:30]} Bxd4 {[%emt 0:01:30]} 15. Qxd4 {[%emt 0:04:30]} Bxe2 {[%emt 0:00:30]} 16. Rfe1 {[%emt 0:07:30]} Qd6 {[%emt 0:00:00]} 17. a4 {[%emt 0:06:30]} h6 {[%emt 0:00:00]} 18. h3 {[%emt 0:03:30]} b6 {[%emt 0:00:30]} 19. a5 {[%emt 0:00:30]} Rad8 {[%emt 0:02:30]} 20. axb6 {[%emt 0:04:30]} axb6 {[%emt 0:00:30]} 21. Bc1 {[%emt 0:05:30]} Bb5 {[%emt 0:09:30]} 22. Rxe8+ {[%emt 0:03:30]} Rxe8 {[%emt 0:01:30]} 23. Be3 {[%emt 0:00:00]} Bc6 {[%emt 0:07:30]} 24. Qxb6 {[%emt 0:05:00]} Rb8 {[%emt 0:00:00]} 25. Qa6 {[%emt 0:01:30]} Ra8 {[%emt 0:00:00]} 26. Qf1 {[%emt 0:00:30]} d4 {[%emt 0:05:30]} 27. Rd1 {[%emt 0:03:30]} Bxg2 {[%emt 0:00:30]} 28. Qxg2 {[%emt 0:00:30]} Qa3 {[%emt 0:02:30]} 29. Bxd4 {[%emt 0:02:30]} Rb8 {[%emt 0:03:30]} 30. Bxf6 {[%emt 0:00:30]} Qxb3 {[%emt 0:00:00]} 31. Rd6 {[%emt 0:02:30]} gxf6 {[%emt 0:00:00]} 32. Rxf6 {[%emt 0:00:30]} Kg7 {[%emt 0:00:30]} 33. Rf4 {[%emt 0:00:30]} Qb7 {[%emt 0:00:30]} 34. Rg4+ {[%emt 0:08:30]} Kh7 {[%emt 0:00:30]} 35. Re4 {[%emt 0:00:30]} Qd5 {[%emt 0:00:00]} 36. g4 {[%emt 0:02:30]} Rb1+ {[%emt 0:01:00]} 37. Kh2 {[%emt 0:00:30]} Qd6+ {[%emt 0:00:00]} 38. Qg3 {[%emt 0:02:30]} 1/2-1/2

[Event "7th Cesme Open-A 2019"]
[Site "Cesme"]
[Date "2019.06.28"]
[Round "7"]
[White "Mammadov, Zaur"]
[Black "Olcum, Ahmet"]
[Result "1-0"]
[ECO "B07"]
[WhiteElo "2428"]
[BlackElo "2315"]
[Annotator "NA"]
[PlyCount "57"]
[EventDate "2019.06.24"]
[EventType "swiss"]
[EventCountry "TUR"]
[SourceTitle "playchess.com"]
[Source "ChessBase"]
[SourceQuality "1"]
[TimeControl "5400+30"]

1. e4 {[%emt 0:00:30]} d6 {[%emt 0:14:30]} 2. d4 {[%emt 0:00:00]} Nf6 {[%emt 0:00:30]} 3. Nd2 {[%emt 0:00:00]} g6 {[%emt 0:00:30]} 4. Ngf3 {[%emt 0:00:30]} Bg7 {[%emt 0:00:00]} 5. Bd3 {[%emt 0:00:00]} O-O {[%emt 0:01:00]} 6. O-O {[%emt 0:00:00]} c5 {[%emt 0:00:00]} 7. dxc5 {[%emt 0:00:30]} dxc5 {[%emt 0:01:00]} 8. e5 {[%emt 0:00:30]} Nd5 {[%emt 0:02:30]} 9. Be4 {[%emt 0:00:30]} Bf5 $14 {[%emt 0:16:30]} 10. Bxf5 {[%emt 0:10:30]} gxf5 {[%emt 0:00:30]} 11. Nb3 {[%emt 0:00:30]} b6 {[%emt 0:13:30]} 12. Bg5 {[%emt 0:04:30]} Nc6 {[%emt 0:14:30]} 13. Qd3 {[%emt 0:00:30]} Nxe5 {[%emt 0:05:30]} 14. Nxe5 {[%emt 0:01:30]} Bxe5 {[%emt 0:00:00]} 15. Rad1 {[%emt 0:02:30]} Nf4 {[%emt 0:04:00]} 16. Qxf5 {[%emt 0:01:30]} Qc7 {[%emt 0:01:30]} 17. Rfe1 {[%emt 0:09:30]} Ng6 {[%emt 0:02:30]} 18. h4 {[%emt 0:03:30]} c4 {[%emt 0:10:58]} 19. Nd2 {[%emt 0:02:30]} h5 {[%emt 0:05:20]} 20. Bh6 {[%emt 0:07:30]} Rfd8 {[%emt 0:00:10]} 21. Nf3 {[%emt 0:01:30]} Bxb2 {[%emt 0:02:30]} 22. Ng5 {[%emt 0:03:30]} Bf6 {[%emt 0:01:41]} 23. Nxf7 {[%emt 0:00:30]} Nxh4 {[%emt 0:01:27]} 24. Qe6 {[%emt 0:00:30]} Rxd1 {[%emt 0:01:04]} 25. Rxd1 {[%emt 0:00:30]} Qc5 {[%emt 0:00:10]} 26. Ng5+ {[%emt 0:02:30]} Kh8 {[%emt 0:00:30]} 27. Qe4 {[%emt 0:00:30]} Bxg5 {[%emt 0:00:08]} 28. Qxa8+ {[%emt 0:01:30]} Kh7 {[%emt 0:00:30]} 29. Rd5 {[%emt 0:00:00]} 1-0